bitfinex/quotes_ETHUSD_20241004
["timestamp","ask_amount","ask_price","bid_price","bid_amount"]
[1728082548214,0.09955973,2424.7,2424.6,1.41593455]
[1728082548601,4.12388,2424.9,2424.6,1.41593455]
[1728082549074,0.09958747,2424.8,2424.6,1.41593455]
[1728082550114,0.09958747,2424.8,2424.6,6.35251455]
[1728082550346,0.09958747,2424.8,2424.7,4.12422]
[1728082550637,4.12361,2425.1,2424.7,4.12422]
[1728082550835,0.09959391,2424.8,2424.7,4.12422]
[1728082551137,0.09960491,2424.8,2424.7,4.12422]
[1728082551442,4.12361,2425.1,2424.7,4.99106501]
[1728082551631,0.09962503,2424.8,2424.7,4.99106501]
[1728082551830,4.12361,2425.1,2424.7,6.38206764]
[1728082552038,4.12361,2425.1,2424.7,4.99106501]
[1728082552039,0.09960491,2424.8,2424.7,4.99106501]
[1728082552199,4.12361,2425.1,2424.7,4.99106501]
[1728082552507,4.12361,2425.1,2424.7,4.12422]
[1728082552712,0.09969055,2425.0,2424.7,4.99106501]
[1728082553242,0.09969055,2425.0,2424.7,4.12422]
[1728082553537,4.12361,2425.1,2424.7,4.12422]
[1728082554143,4.93371,2425.2,2424.7,4.12422]
[1728082554310,4.93365,2425.2,2424.7,4.99106501]
[1728082554635,0.09972834,2425.1,2424.8,2.28277956]
[1728082555607,4.22326834,2425.1,2424.8,2.28277956]
[1728082555925,0.09972834,2425.1,2424.8,2.28277956]
[1728082556456,0.09972834,2425.1,2424.9,0.7708]
[1728082556648,0.09972834,2425.1,2425.0,1.41593455]
[1728082557007,0.64659191,2425.3,2425.0,1.41593455]
[1728082557202,0.09987598,2425.1,2425.0,1.41593455]
[1728082557719,0.64659191,2425.3,2425.0,1.41593455]
[1728082558246,0.09991376,2425.2,2425.0,1.41593455]
[1728082558445,0.64659191,2425.3,2425.0,1.41593455]
[1728082558752,0.09991376,2425.2,2425.0,1.41593455]
[1728082559124,0.64659191,2425.3,2425.0,1.41593455]
[1728082559320,0.09987598,2425.1,2425.0,1.41593455]
[1728082559519,0.64659191,2425.3,2425.0,1.41593455]
[1728082559755,0.09987598,2425.1,2425.0,1.41593455]
[1728082560056,0.64659191,2425.3,2425.0,1.41593455]
[1728082560217,0.09987598,2425.1,2425.0,1.41593455]
[1728082560418,0.64659191,2425.3,2425.0,1.41593455]
[1728082560918,0.09991376,2425.2,2425.0,1.41593455]
[1728082561118,0.09991376,2425.2,2425.0,2.67623085]
[1728082561318,0.64659191,2425.3,2425.1,0.7708]
[1728082561584,0.64659191,2425.3,2425.1,4.89433]
[1728082562075,3.0,2425.4,2425.1,4.89433]
[1728082562241,3.0,2425.4,2425.2,1.41593455]
[1728082564037,3.0,2425.4,2424.9,0.86684501]
[1728082564240,3.78835,2425.4,2425.0,4.1237]
[1728082564440,3.0,2425.4,2425.0,4.1237]
[1728082565460,3.0,2425.4,2425.1,4.12353]
[1728082565765,0.10003677,2425.3,2425.1,4.12353]
[1728082567182,0.10003677,2425.3,2425.1,5.53946455]
[1728082568669,0.10003677,2425.3,2425.1,1.41593455]
[1728082569688,0.10003677,2425.3,2425.1,5.53945455]
[1728082569887,0.10003677,2425.3,2425.1,1.41593455]
[1728082570278,0.10003677,2425.3,2425.1,5.53945455]
[1728082575700,0.10003677,2425.3,2425.2,4.89607]
[1728082576296,0.10003677,2425.3,2425.2,5.76291501]
[1728082576603,0.799,2426.0,2425.5,8.2455]
[1728082576604,4.9211,2426.0,2425.5,8.2455]
[1728082576887,4.9211,2426.0,2425.8,1.41593455]
[1728082576888,0.10035687,2425.9,2425.8,1.41593455]
[1728082579389,0.10035687,2425.9,2425.6,2.18863455]
[1728082579697,0.10035687,2425.9,2425.6,6.31122455]
[1728082580575,0.10035687,2425.9,2425.5,4.12274]
[1728082580782,0.10035687,2425.9,2425.2,4.12335]
[1728082580783,4.1226,2425.7,2425.2,4.12335]
[1728082580992,0.799,2425.6,2425.2,4.12335]
[1728082581210,0.799,2425.6,2425.1,11.42343]
[1728082581778,4.12287,2425.5,2425.1,11.42343]
[1728082582015,5.12780131,2425.5,2425.1,4.12343]
[1728082582216,1.00493131,2425.5,2425.1,4.12343]
[1728082583888,1.00493131,2425.5,2425.1,8.24688]
[1728082584587,1.00493131,2425.5,2425.2,5.53929455]
[1728082585623,1.00493131,2425.5,2425.2,1.41593455]
[1728082587182,1.00493131,2425.5,2425.2,5.53926455]
[1728082589135,0.10048431,2425.5,2425.2,5.53926455]
[1728082592936,0.8192,2425.4,2425.2,5.53926455]
[1728082593110,0.8192,2425.4,2425.3,4.1232]
[1728082595838,0.91940105,2425.4,2425.3,4.1232]
[1728082596032,0.91940105,2425.4,2425.1,4.12343]
[1728082597123,0.91940105,2425.4,2425.1,8.24689]
[1728082597519,0.91940105,2425.4,2425.1,4.12343]
[1728082599098,0.91940105,2425.4,2425.1,8.24689]
[1728082602350,0.91940105,2425.4,2425.1,9.11146208]
[1728082602550,0.91940105,2425.4,2425.1,4.12343]
[1728082602753,0.91940105,2425.4,2425.1,8.24686]
[1728082602958,0.91940105,2425.4,2425.1,9.11143208]
[1728082603159,0.91940105,2425.4,2425.1,8.24686]
[1728082603351,0.91940105,2425.4,2425.1,9.11143208]
[1728082604619,0.91940105,2425.4,2425.1,6.40393663]
[1728082605755,0.91940105,2425.4,2425.2,0.53809905]
[1728082605965,0.91940105,2425.4,2425.1,10.52733663]
[1728082606163,0.91940105,2425.4,2425.1,6.40390663]
[1728082607355,0.91940105,2425.4,2425.1,10.52736663]
[1728082609091,0.91940105,2425.4,2425.1,6.40390663]
[1728082609894,0.91940105,2425.4,2425.1,4.98797208]
[1728082610042,0.91940105,2425.4,2425.1,6.40390663]
[1728082614637,0.91940105,2425.4,2425.1,10.52736663]
[1728082615125,0.91940105,2425.4,2425.1,6.40390663]
[1728082615292,0.91940105,2425.4,2425.2,4.98787208]
[1728082615723,0.91940105,2425.4,2425.2,4.1233]
[1728082615928,0.91940105,2425.4,2425.2,4.98787208]
[1728082617427,0.91940105,2425.4,2425.2,4.1233]
[1728082617628,0.91940105,2425.4,2425.2,4.98787208]
[1728082624041,0.91940105,2425.4,2425.3,0.86457208]
[1728082624458,0.91940105,2425.4,2425.2,4.98787208]
[1728082624664,0.91940105,2425.4,2425.3,0.86457208]
[1728082625073,0.10020105,2425.4,2425.3,2.28050663]
[1728082625275,0.10020105,2425.4,2425.3,8.74194463]
[1728082625491,0.7562,2425.9,2425.3,3.31708121]
[1728082625492,3.7562,2425.9,2425.3,3.31708121]
[1728082625669,3.7562,2425.9,2425.5,6.40551857]
[1728082625987,0.10032823,2425.8,2425.5,6.40551857]
[1728082626488,3.10032823,2425.8,2425.5,6.40551857]
[1728082627069,3.10032823,2425.8,2425.5,2.28275857]
[1728082629551,0.8232,2425.6,2425.4,0.86682402]
[1728082629752,0.10021493,2425.5,2425.3,0.86682402]
[1728082635122,0.10021493,2425.5,2425.2,4.99018402]
[1728082635325,0.10021493,2425.5,2425.3,0.86682402]
[1728082636181,0.10021493,2425.5,2425.2,4.99018402]
[1728082636386,0.10021493,2425.5,2425.3,0.86682402]
[1728082637425,0.74668486,2425.5,2425.3,0.86682402]
[1728082641033,0.74668486,2425.5,2425.4,5.78045402]
[1728082641391,4.12161,2426.3,2425.7,4.12239]
[1728082641392,0.7579,2426.1,2425.7,4.12239]
[1728082641718,0.64640418,2426.0,2425.7,6.32892455]
[1728082641911,0.74299762,2426.0,2425.7,3.07321392]
[1728082643293,0.09659344,2426.0,2425.7,2.20653455]
[1728082646394,0.09659344,2426.0,2425.7,6.32892455]
[1728082646625,0.09659344,2426.0,2425.7,2.20653455]
[1728082646931,0.09659344,2426.0,2425.8,4.12234]
[1728082647139,7.87958,2426.2,2425.8,4.12234]
[1728082647307,0.09664091,2425.9,2425.8,4.12234]
[1728082647493,7.87958,2426.2,2425.8,4.12234]
[1728082647694,0.09664091,2425.9,2425.8,4.12234]
[1728082647922,7.87958,2426.2,2425.8,4.12234]
[1728082648122,0.09664091,2425.9,2425.8,4.12234]
[1728082648427,0.09664091,2425.9,2425.7,6.32904455]
[1728082648633,7.87958,2426.2,2425.7,6.32904455]
[1728082648840,0.09660315,2425.8,2425.7,6.32904455]
[1728082649134,7.87958,2426.2,2425.7,7.65809084]
[1728082649323,0.09660315,2425.8,2425.7,6.32904455]
[1728082649498,7.87958,2426.2,2425.7,6.32904455]
[1728082649993,0.09671643,2426.1,2425.7,6.32904455]
[1728082655524,0.09671643,2426.1,2425.7,2.20653455]
[1728082655728,0.09671643,2426.1,2425.8,4.12234]
[1728082667304,0.09671643,2426.1,2425.8,8.24457]
[1728082667508,0.09671643,2426.1,2425.9,2.21813455]
[1728082667751,7.1215,2426.3,2425.9,2.21813455]
[1728082668049,8.322034,2426.3,2425.9,2.21813455]
[1728082668247,0.0967981,2426.2,2425.9,2.21813455]
[1728082668610,8.322034,2426.3,2425.9,2.21813455]
[1728082668814,0.09678715,2426.2,2425.9,2.21813455]
[1728082669313,8.322034,2426.3,2425.9,2.21813455]
[1728082669511,0.0967695,2426.1,2425.9,2.21813455]
[1728082669755,7.1215,2426.3,2425.9,2.21813455]
[1728082669950,0.09673175,2426.0,2425.9,2.21813455]
[1728082670112,7.1215,2426.3,2425.9,2.21813455]
[1728082670314,0.09673175,2426.0,2425.9,2.21813455]
[1728082670557,7.1215,2426.3,2425.9,2.75669093]
[1728082670757,0.09673175,2426.0,2425.9,2.21813455]
[1728082670929,7.1215,2426.3,2425.9,2.21813455]
[1728082671135,0.09673175,2426.0,2425.9,2.21813455]
[1728082671338,7.1215,2426.3,2425.9,2.21813455]
[1728082671572,0.09673175,2426.0,2425.9,2.21813455]
[1728082671778,4.12125,2426.5,2426.1,0.8039]
[1728082672060,4.12135,2426.4,2426.2,1.41593455]
[1728082675532,4.12125,2426.5,2426.2,1.41593455]
[1728082675932,8.24253,2426.5,2426.2,1.41593455]
[1728082676781,8.24254,2426.5,2426.2,1.41593455]
[1728082677471,4.12136,2426.4,2426.2,1.41593455]
[1728082685765,0.0930819,2426.3,2426.2,1.41593455]
[1728082689508,4.2145819,2426.3,2426.2,1.41593455]
[1728082691104,8.3361819,2426.3,2426.1,0.8039]
[1728082691278,4.2145819,2426.3,2426.1,0.8039]
[1728082691474,4.12184,2426.1,2425.9,1.62667937]
[1728082691821,4.12184,2426.1,2425.6,6.28650609]
[1728082691822,8.24383,2426.1,2425.7,1.62667937]
[1728082691963,8.24383,2426.1,2425.7,5.74916937]
[1728082691964,0.08992883,2426.0,2425.7,5.74916937]
[1728082692163,0.08992883,2426.0,2425.7,1.62667937]
[1728082692595,8.24376,2426.1,2425.7,1.62667937]
[1728082692862,0.08992883,2426.0,2425.7,1.62667937]
[1728082693299,4.12184,2426.1,2425.7,1.62667937]
[1728082693461,0.08989107,2425.9,2425.7,1.62667937]
[1728082693663,4.12184,2426.1,2425.7,1.62667937]
[1728082693865,0.08982294,2425.8,2425.7,1.62667937]
[1728082694110,4.12184,2426.1,2425.7,1.62667937]
[1728082694270,0.08982294,2425.8,2425.7,1.62667937]
[1728082695002,4.12184,2426.1,2425.7,1.62667937]
[1728082695305,4.12184,2426.1,2425.7,5.74919937]
[1728082695506,0.08989846,2426.0,2425.7,5.74919937]
[1728082697039,4.95358,2426.2,2425.7,5.74919937]
[1728082697837,0.08993622,2426.1,2425.7,5.74919937]
[1728082698200,4.95358,2426.2,2425.7,5.74919937]
[1728082698544,0.08993622,2426.1,2425.7,5.74919937]
[1728082698899,4.95358,2426.2,2425.7,5.74919937]
[1728082699215,0.08993622,2426.1,2425.7,5.74919937]
[1728082699400,4.95358,2426.2,2425.7,5.74919937]
[1728082699720,0.08993622,2426.1,2425.7,5.74919937]
[1728082700123,4.95358,2426.2,2425.7,5.74919937]
[1728082700499,0.08993622,2426.1,2425.8,0.86667937]
[1728082700709,0.08993622,2426.1,2425.7,4.88252]
[1728082700710,0.08993622,2426.1,2425.7,1.62667937]
[1728082701002,4.95358,2426.2,2425.8,4.12234]
[1728082701203,0.08993622,2426.1,2425.8,4.12234]
[1728082703142,0.08993622,2426.1,2425.8,4.98901937]
[1728082703438,0.08993622,2426.1,2425.8,6.40495392]
[1728082710472,0.08993622,2426.1,2425.8,2.28261392]
[1728082711372,0.08993622,2426.1,2425.8,6.40494392]
[1728082714286,0.08993622,2426.1,2425.8,5.53826455]
[1728082714486,0.08993622,2426.1,2425.8,6.40494392]
[1728082714687,4.12159,2426.3,2425.9,4.91206]
[1728082714996,0.08989293,2426.0,2425.9,4.91206]
[1728082715509,8.24318,2426.3,2425.9,4.91206]
[1728082715725,0.08989293,2426.0,2425.9,4.91206]
[1728082715923,8.24318,2426.3,2425.9,4.91206]
[1728082716127,0.08989293,2426.0,2425.9,0.7899]
[1728082716283,8.24318,2426.3,2425.9,0.7899]
[1728082716482,0.08989293,2426.0,2425.9,0.7899]
[1728082716723,8.24318,2426.3,2425.9,0.7899]
[1728082716938,0.08989293,2426.0,2425.9,0.7899]
[1728082717136,8.24318,2426.3,2425.9,0.7899]
[1728082717328,0.08990396,2426.0,2425.9,0.7899]
[1728082717488,8.24318,2426.3,2425.9,0.7899]
[1728082717693,0.08990396,2426.0,2425.9,0.7899]
[1728082717887,8.24318,2426.3,2425.9,0.7899]
[1728082718091,0.08990396,2426.0,2425.9,0.7899]
[1728082718536,8.24318,2426.3,2425.9,0.7899]
[1728082718838,0.08990396,2426.0,2425.9,0.7899]
[1728082719023,8.24318,2426.3,2425.9,0.7899]
[1728082719336,9.148658,2426.3,2425.9,0.78862927]
[1728082719494,0.08997947,2426.2,2425.9,0.78862927]
[1728082719891,9.148658,2426.3,2425.9,1.65530864]
[1728082720123,0.08994172,2426.1,2425.9,1.65530864]
[1728082720321,4.12167,2426.2,2425.9,0.78862927]
[1728082720525,0.08990396,2426.0,2425.9,0.78862927]
[1728082720737,4.12167,2426.2,2425.9,0.78862927]
[1728082720908,0.08990396,2426.0,2425.9,0.78862927]
[1728082721103,4.12167,2426.2,2425.9,0.78862927]
[1728082721304,0.08990396,2426.0,2425.9,0.78862927]
[1728082721506,4.12167,2426.2,2425.9,0.78862927]
[1728082721736,0.08990396,2426.0,2425.9,0.78862927]
[1728082721921,4.12167,2426.2,2425.9,0.78862927]
[1728082722122,0.08990396,2426.0,2425.9,0.78862927]
[1728082722309,4.12187,2426.1,2425.9,0.78862927]
[1728082722510,0.08990396,2426.0,2425.9,0.78862927]
[1728082726738,0.08990396,2426.0,2425.8,2.28261392]
[1728082728743,4.12202,2426.0,2425.8,2.28261392]
[1728082728944,0.08923089,2425.9,2425.8,0.86667937]
[1728082729107,4.21141089,2425.9,2425.7,0.86667937]
[1728082729445,4.12218,2425.9,2425.6,0.86667937]
[1728082730971,4.12218,2425.9,2425.7,0.53859635]
[1728082731174,4.12235,2425.8,2425.6,0.86667937]
[1728082731383,5.02866,2425.8,2425.6,0.86667937]
[1728082731533,0.08912762,2425.7,2425.5,1.67117937]
[1728082731877,5.02866,2425.8,2425.5,1.67117937]
[1728082732682,0.08910553,2425.7,2425.6,0.86667937]
[1728082733036,5.02866,2425.8,2425.5,1.67117937]
[1728082733462,0.08908343,2425.7,2425.5,1.67117937]
[1728082733977,4.12235,2425.8,2425.5,1.67117937]
[1728082734497,0.08908343,2425.7,2425.5,1.67117937]
[1728082734974,0.08900148,2425.6,2425.5,1.67117937]
[1728082735146,4.12235,2425.8,2425.5,1.67117937]
[1728082735347,0.08899872,2425.6,2425.5,1.67117937]
[1728082735569,4.12235,2425.8,2425.5,1.20835712]
[1728082735775,4.12235,2425.8,2425.6,0.86641781]
[1728082736078,4.12235,2425.8,2425.5,1.67091781]
[1728082736576,4.12235,2425.8,2425.6,0.86641781]
[1728082736770,5.09333054,2425.8,2425.6,0.86641781]
[1728082737161,5.09333054,2425.8,2425.5,1.67091781]
[1728082738634,5.09333054,2425.8,2425.6,0.86641781]
[1728082739240,5.09333054,2425.8,2425.5,1.67091781]
[1728082739880,5.09333054,2425.8,2425.6,0.86641781]
[1728082740169,5.09333054,2425.8,2425.5,1.67091781]
[1728082740382,4.12235,2425.8,2425.5,1.67091781]
[1728082743749,4.12235,2425.8,2425.6,0.86641781]
[1728082743895,4.12235,2425.8,2425.5,1.67091781]
[1728082745512,4.12235,2425.8,2425.5,0.86641781]
[1728082745848,0.08901638,2425.7,2425.5,0.86641781]
[1728082746212,4.12235,2425.8,2425.5,0.86641781]
[1728082746737,0.08903649,2425.7,2425.5,0.86641781]
[1728082746939,4.12235,2425.8,2425.5,0.86641781]
[1728082747106,0.08896445,2425.6,2425.5,0.86641781]
[1728082747306,4.12235,2425.8,2425.5,0.86641781]
[1728082747520,0.08895908,2425.6,2425.5,0.86641781]
[1728082747719,4.12235,2425.8,2425.5,0.86641781]
[1728082747925,0.08895908,2425.6,2425.5,0.86641781]
[1728082748120,4.12235,2425.8,2425.5,0.86641781]
[1728082748355,0.08895908,2425.6,2425.5,0.86641781]
[1728082748524,4.12235,2425.8,2425.5,0.86641781]
[1728082748728,0.08895908,2425.6,2425.5,0.86641781]
[1728082748958,4.12235,2425.8,2425.5,0.86641781]
[1728082749122,0.08895908,2425.6,2425.5,0.86641781]
[1728082749456,4.12235,2425.8,2425.5,0.86641781]
[1728082749628,0.08895908,2425.6,2425.5,0.86641781]
[1728082749827,4.12235,2425.8,2425.5,0.86641781]
[1728082750052,0.08895908,2425.6,2425.5,0.86641781]
[1728082750252,4.12235,2425.8,2425.5,0.86641781]
[1728082750455,0.08895908,2425.6,2425.5,0.86641781]
[1728082750620,4.12235,2425.8,2425.5,0.86641781]
[1728082750822,0.08895908,2425.6,2425.5,0.86641781]
[1728082751445,4.12235,2425.8,2425.5,0.86641781]
[1728082751640,0.08895908,2425.6,2425.5,0.86641781]
[1728082751830,4.12235,2425.8,2425.5,0.86641781]
[1728082752032,0.08895908,2425.6,2425.5,0.86641781]
[1728082752259,4.12235,2425.8,2425.5,0.86641781]
[1728082752431,0.08895908,2425.6,2425.5,0.86641781]
[1728082752630,4.12235,2425.8,2425.5,0.86641781]
[1728082752818,0.08895908,2425.6,2425.5,0.86641781]
[1728082753018,4.12235,2425.8,2425.5,0.86641781]
[1728082753256,0.08895908,2425.6,2425.5,0.86641781]
[1728082753758,4.12235,2425.8,2425.5,0.86641781]
[1728082753917,0.08856896,2425.6,2425.5,0.86641781]
[1728082754117,4.12235,2425.8,2425.5,0.86641781]
[1728082754318,0.08856896,2425.6,2425.5,0.86641781]
[1728082754534,4.12235,2425.8,2425.5,1.53938587]
[1728082754732,0.08856068,2425.6,2425.5,0.86641781]
[1728082755030,4.12235,2425.8,2425.5,1.53938469]
[1728082755229,4.12235,2425.8,2425.6,1.41593455]
[1728082755427,0.08859845,2425.7,2425.6,1.41593455]
[1728082755957,0.64637537,2425.9,2425.7,0.8013]
[1728082756348,0.64637537,2425.9,2425.8,1.41593455]
[1728082756653,3.0,2426.1,2425.8,1.41593455]
[1728082757257,7.12184,2426.1,2425.8,1.41593455]
[1728082760859,0.08853314,2426.0,2425.8,1.41593455]
[1728082761061,4.21055314,2426.0,2425.8,1.41593455]
[1728082762167,8.33264314,2426.0,2425.8,1.41593455]
[1728082763270,4.21055314,2426.0,2425.8,1.41593455]
[1728082763642,8.33271314,2426.0,2425.8,1.41593455]
[1728082765849,8.33266314,2426.0,2425.8,1.41593455]
[1728082766056,4.21055314,2426.0,2425.8,1.41593455]
[1728082766470,8.33265314,2426.0,2425.8,1.41593455]
[1728082766769,4.21055314,2426.0,2425.8,1.41593455]
[1728082769344,8.33269314,2426.0,2425.8,1.41593455]
[1728082770031,4.21055314,2426.0,2425.8,1.41593455]
[1728082770240,8.33271314,2426.0,2425.8,1.41593455]
[1728082770649,4.21055314,2426.0,2425.8,1.41593455]
[1728082770945,4.12218,2425.9,2425.8,1.41593455]
[1728082771175,4.21073246,2425.9,2425.8,1.41593455]
[1728082772369,0.08855246,2425.9,2425.8,1.41593455]
[1728082772877,0.08855246,2425.9,2425.8,2.28235236]
[1728082774132,0.08855246,2425.9,2425.8,3.30501849]
[1728082774331,4.12185,2426.1,2425.8,2.84265003]
[1728082774570,4.12185,2426.1,2426.0,1.41593455]
[1728082775750,4.21007515,2426.1,2426.0,1.41593455]
[1728082777376,0.08822515,2426.1,2426.0,1.41593455]
[1728082789291,0.08822515,2426.1,2425.8,2.28277375]
[1728082790158,4.12201,2426.0,2425.7,0.8668392]
[1728082790461,4.21020843,2426.0,2425.7,0.8668392]
[1728082791557,0.08819843,2426.0,2425.7,0.8668392]
[1728082791797,0.08819843,2426.0,2425.8,0.53833896]
[1728082791982,0.08819843,2426.0,2425.7,0.8668392]
[1728082792181,0.08819843,2426.0,2425.8,0.53832852]
[1728082792383,0.08819843,2426.0,2425.7,6.40521375]
[1728082792558,0.08819843,2426.0,2425.8,0.53834613]
[1728082792753,0.08819843,2426.0,2425.7,6.40521375]
[1728082792974,0.08819843,2426.0,2425.8,0.53833744]
[1728082793209,0.08819843,2426.0,2425.8,0.8668392]
[1728082794162,0.08819843,2426.0,2425.9,1.41593455]
[1728082795088,0.08819843,2426.0,2425.8,0.8668392]
[1728082796880,0.08819843,2426.0,2425.7,6.8383936]
[1728082796881,0.08819843,2426.0,2425.7,6.40521375]
[1728082797203,0.08819843,2426.0,2425.7,7.23081375]
[1728082797565,0.08819843,2426.0,2425.8,0.53844128]
[1728082797908,0.08819843,2426.0,2425.7,7.23081375]
[1728082798078,0.08819843,2426.0,2425.8,1.40527009]
[1728082798279,0.08819843,2426.0,2425.8,0.8668392]
[1728082799502,0.08819843,2426.0,2425.9,0.53846916]
[1728082800471,0.08819843,2426.0,2425.9,1.07696072]
[1728082800672,0.08819843,2426.0,2425.9,1.94379992]
[1728082800894,0.08819843,2426.0,2425.9,1.07696072]
[1728082804871,0.08819843,2426.0,2425.9,1.94379992]
[1728082805268,0.08819843,2426.0,2425.9,1.07696072]
[1728082806014,0.08819843,2426.0,2425.9,1.61553897]
[1728082806423,0.08819843,2426.0,2425.9,1.07696072]
[1728082806720,0.08819843,2426.0,2425.9,1.61554407]
[1728082807078,0.08819843,2426.0,2425.9,1.40542255]
[1728082807895,0.08819843,2426.0,2425.9,0.53858335]
[1728082808208,0.08819843,2426.0,2425.9,1.40542255]
[1728082809114,0.08819843,2426.0,2425.9,0.53858335]
[1728082809423,0.08819843,2426.0,2425.8,4.9891592]
[1728082809923,0.08819843,2426.0,2425.9,1.40542266]
[1728082810677,0.08819843,2426.0,2425.9,0.53858346]
[1728082811302,0.08819843,2426.0,2425.9,1.40542266]
[1728082812022,0.08819843,2426.0,2425.9,6.32130266]
[1728082812238,0.08819843,2426.0,2425.9,7.22502829]
[1728082812799,0.08819843,2426.0,2425.9,6.68644483]
[1728082813038,0.08819843,2426.0,2425.9,7.22497854]
[1728082813737,0.08819843,2426.0,2425.9,1.40537291]
[1728082816625,0.08819843,2426.0,2425.9,1.40537527]
[1728082817633,0.7878,2426.1,2425.9,1.40537527]
[1728082817835,0.7878,2426.1,2426.0,0.53853607]
[1728082818074,0.7878,2426.1,2426.0,1.96008022]
[1728082819449,0.7878,2426.1,2426.0,1.95945935]
[1728082820676,0.7878,2426.1,2426.0,0.94233224]
[1728082822575,0.7878,2426.1,2426.0,0.94187696]
[1728082825520,0.7878,2426.1,2426.0,0.53807275]
[1728082825737,0.7878,2426.1,2426.0,0.53795822]
[1728082825885,0.7878,2426.1,2426.0,0.9416528]
[1728082826084,0.7878,2426.1,2426.0,0.40369188]
[1728082826422,0.67840887,2426.1,2426.0,0.94164024]
[1728082826730,0.67840887,2426.1,2425.9,0.8668392]
[1728082826899,0.64627854,2426.2,2425.9,0.8668392]
[1728082826900,0.64627854,2426.2,2426.0,0.94158603]
[1728082827100,0.64627854,2426.2,2426.1,0.5379227]
[1728082828126,0.64627854,2426.2,2426.1,8.06969186]
[1728082828300,0.64627854,2426.2,2426.1,8.06938269]
[1728082828500,0.64627854,2426.2,2426.1,8.50270757]
[1728082828697,0.64627854,2426.2,2426.1,8.09909481]
[1728082829025,0.64627854,2426.2,2426.1,8.41284679]
[1728082829227,0.64627854,2426.2,2426.1,8.06903969]
[1728082829413,4.9525,2426.6,2426.1,8.06899398]
[1728082829630,4.9525,2426.6,2426.2,2.02844304]
[1728082829917,4.9525,2426.6,2426.2,1.49069276]
[1728082830136,9.07363,2426.6,2426.2,1.49069276]
[1728082830286,4.12118,2426.5,2426.2,1.49069276]
[1728082830493,4.12118,2426.5,2426.2,2.90662731]
[1728082830693,4.12118,2426.5,2426.3,0.52404051]
[1728082830925,4.12118,2426.5,2426.2,1.41593455]
[1728082831504,4.12118,2426.5,2426.3,0.53757445]
[1728082831701,4.12118,2426.5,2426.2,1.41593455]
[1728082831984,0.08836233,2426.4,2426.2,1.41593455]
[1728082833518,4.20971233,2426.4,2426.2,1.41593455]
[1728082833719,4.20971233,2426.4,2426.2,2.13366951]
[1728082837562,4.20971233,2426.4,2426.2,1.41593455]
[1728082837767,4.9071,2426.3,2426.0,2.28263964]
[1728082838250,0.08834758,2426.2,2426.0,1.41593455]
[1728082838414,0.08834758,2426.2,2426.0,2.28263964]
[1728082838621,4.9071,2426.3,2426.1,0.64048096]
[1728082838929,4.9071,2426.3,2426.0,2.28263964]
[1728082841650,4.9071,2426.3,2426.0,1.41593455]
[1728082841831,4.9071,2426.3,2426.0,2.28263964]
[1728082845372,0.7856,2426.3,2426.0,2.28263964]
[1728082845935,0.08836774,2426.2,2426.0,2.28263964]
[1728082846280,0.7856,2426.3,2426.0,3.3049145]
[1728082846578,4.1217,2426.2,2426.0,0.86670509]
[1728082846935,0.08832445,2426.1,2426.0,0.86670509]
[1728082847383,4.1217,2426.2,2426.0,0.86670509]
[1728082847586,0.7856,2426.3,2426.0,0.86670509]
[1728082847889,4.90712,2426.3,2426.0,0.86670509]
[1728082848091,0.0883622,2426.2,2426.0,0.86670509]
[1728082848284,4.90712,2426.3,2426.0,0.86670509]
[1728082848486,0.0883622,2426.2,2426.0,0.86670509]
[1728082848685,4.90712,2426.3,2426.0,0.86670509]
[1728082848885,0.0883622,2426.2,2426.0,0.86670509]
[1728082849133,4.90712,2426.3,2426.0,0.86670509]
[1728082849303,0.08832445,2426.1,2426.0,0.86670509]
[1728082849504,4.90712,2426.3,2426.0,0.86670509]
[1728082849705,0.0883622,2426.2,2426.0,0.86670509]
[1728082849891,4.90712,2426.3,2426.0,0.86670509]
[1728082850091,0.0883622,2426.2,2426.0,0.86670509]
[1728082850292,4.90712,2426.3,2426.0,0.86670509]
[1728082850494,0.0883622,2426.2,2426.0,0.86670509]
[1728082850727,4.90712,2426.3,2426.0,0.86670509]
[1728082850894,0.0883622,2426.2,2426.0,0.86670509]
[1728082851101,4.90712,2426.3,2426.0,0.86670509]
[1728082851306,0.0883622,2426.2,2426.0,0.86670509]
[1728082851546,4.90712,2426.3,2426.0,0.86670509]
[1728082852045,0.0883622,2426.2,2426.0,0.86670509]
[1728082852548,4.90712,2426.3,2425.9,0.86670509]
[1728082852909,0.0883622,2426.2,2425.9,0.86670509]
[1728082853244,4.90712,2426.3,2425.9,0.86670509]
[1728082853598,0.0883622,2426.2,2425.9,0.86670509]
[1728082854041,4.90712,2426.3,2425.9,0.86670509]
[1728082854227,4.90712,2426.3,2426.0,0.86670509]
[1728082854447,0.0883622,2426.2,2426.0,0.86670509]
[1728082854946,4.90712,2426.3,2425.9,0.86670509]
[1728082855132,4.90712,2426.3,2426.0,0.86670509]
[1728082855335,0.0883622,2426.2,2426.0,0.86670509]
[1728082855549,4.90712,2426.3,2426.0,0.86670509]
[1728082855904,0.0883622,2426.2,2426.0,0.86670509]
[1728082856132,4.90712,2426.3,2426.0,0.86670509]
[1728082856331,0.0883622,2426.2,2426.0,0.86670509]
[1728082856533,4.90712,2426.3,2426.0,0.86670509]
[1728082856848,0.0883622,2426.2,2426.0,0.86670509]
[1728082857205,4.90712,2426.3,2426.0,0.86670509]
[1728082857602,0.0883622,2426.2,2426.0,0.86670509]
[1728082858048,4.90712,2426.3,2426.0,0.86670509]
[1728082858452,0.0883622,2426.2,2426.0,0.86670509]
[1728082858805,4.90712,2426.3,2426.0,0.86670509]
[1728082859219,0.08837136,2426.2,2426.0,0.86670509]
[1728082859755,4.90712,2426.3,2426.0,0.86670509]
[1728082860207,0.08837136,2426.2,2426.0,0.86670509]
[1728082860412,0.08837136,2426.2,2426.0,1.71695896]
[1728082860641,4.90712,2426.3,2426.0,1.71695896]
[1728082860642,0.7856,2426.3,2426.0,1.71695896]
[1728082861209,4.90711,2426.3,2426.0,1.71695896]
[1728082863831,0.7856,2426.3,2426.0,1.71695896]
[1728082864022,4.90711,2426.3,2426.0,1.71695896]
[1728082864223,4.90711,2426.3,2426.2,0.86612173]
[1728082864537,4.99553018,2426.3,2426.2,0.86612173]
[1728082864744,4.99553018,2426.3,2426.2,1.30001905]
[1728082864923,4.99553018,2426.3,2426.1,1.30001905]
[1728082865639,4.99553018,2426.3,2426.2,0.86615536]
[1728082866023,4.12184,2426.1,2426.0,0.86615536]
[1728082866374,4.12201,2426.0,2425.9,1.30001905]
[1728082866662,4.91581,2426.0,2425.9,0.86662474]
[1728082866807,7.91598,2425.9,2425.8,0.86662474]
[1728082867012,7.91615,2425.8,2425.7,0.86662474]
[1728082867312,7.91615,2425.8,2425.6,1.30001905]